[Event "Early-Titled-Tuesday-Blitz-May-28-2024"]
[Site "Chess.com"]
[Date "2024.05.28"]
[Round "2"]
[White "Matsanovic"]
[Black "rasmussvane"]
[Result "0-1"]
[WhiteElo "2612"]
[BlackElo "2959"]
[TimeControl "180+1"]
[EndTime "8:21:16 PDT"]
[Termination "rasmussvane won by resignation"]

1. e4 {[%clk 0:03:00.9]} 1... c6 {[%clk 0:02:58.8]} 2. Nc3 {[%clk 0:02:59.9]}
2... d5 {[%clk 0:02:59.7]} 3. Nf3 {[%clk 0:02:59.5]} 3... dxe4 {[%clk
0:02:59.9]} 4. Nxe4 {[%clk 0:02:58.9]} 4... Nf6 {[%clk 0:03:00.5]} 5. Ng3 {[%clk
0:02:54.4]} 5... g6 {[%clk 0:02:59.9]} 6. Bc4 {[%clk 0:02:54]} 6... Bg7 {[%clk
0:03:00.1]} 7. h3 {[%clk 0:02:52.9]} 7... O-O {[%clk 0:03:00]} 8. a4 {[%clk
0:02:52.5]} 8... c5 {[%clk 0:02:59.1]} 9. O-O {[%clk 0:02:51.5]} 9... Nc6 {[%clk
0:02:58.2]} 10. Re1 {[%clk 0:02:51]} 10... b6 {[%clk 0:02:57.5]} 11. d3 {[%clk
0:02:49.7]} 11... Bb7 {[%clk 0:02:56.3]} 12. Bd2 {[%clk 0:02:49]} 12... Nd5
{[%clk 0:02:53.8]} 13. c3 {[%clk 0:02:44.7]} 13... e6 {[%clk 0:02:42.1]} 14. Qc2
{[%clk 0:02:35.9]} 14... Qc7 {[%clk 0:02:40.9]} 15. Ne2 {[%clk 0:02:28.9]} 15...
Rad8 {[%clk 0:02:37]} 16. Rad1 {[%clk 0:02:26.8]} 16... Na5 {[%clk 0:02:30.3]}
17. Ba2 {[%clk 0:02:25.5]} 17... Rfe8 {[%clk 0:02:28.3]} 18. Bg5 {[%clk
0:02:24.6]} 18... Rc8 {[%clk 0:02:27.7]} 19. Bh4 {[%clk 0:02:22]} 19... Bc6
{[%clk 0:02:21.6]} 20. Bg3 {[%clk 0:02:07]} 20... Qd7 {[%clk 0:02:16.6]} 21. b3
{[%clk 0:02:06.8]} 21... e5 {[%clk 0:02:12.1]} 22. Nd2 {[%clk 0:01:55.9]} 22...
Kh8 {[%clk 0:02:06.4]} 23. Nc4 {[%clk 0:01:55.4]} 23... Nb7 {[%clk 0:02:03.2]}
24. Kh2 {[%clk 0:01:52.5]} 24... Nd6 {[%clk 0:02:02.5]} 25. Ng1 {[%clk
0:01:44.1]} 25... Nf4 {[%clk 0:01:44.8]} 26. f3 {[%clk 0:01:28.7]} 26... Nf5
{[%clk 0:01:42.3]} 27. Bf2 {[%clk 0:01:24.1]} 27... Rcd8 {[%clk 0:01:42.2]} 28.
Bb1 {[%clk 0:01:21.6]} 28... h5 {[%clk 0:01:28]} 29. g3 {[%clk 0:01:19.6]} 29...
Nd5 {[%clk 0:01:25.6]} 30. Ne2 {[%clk 0:01:09.6]} 30... Kg8 {[%clk 0:01:23.6]}
31. h4 {[%clk 0:01:01.7]} 31... a6 {[%clk 0:01:17.6]} 32. Ng1 {[%clk 0:00:58.5]}
32... Rc8 {[%clk 0:01:14.1]} 33. Ne3 {[%clk 0:00:49.3]} 33... Ndxe3 {[%clk
0:01:10.4]} 34. Bxe3 {[%clk 0:00:49.8]} 34... Bd5 {[%clk 0:01:04.9]} 35. Bf2
{[%clk 0:00:48.8]} 35... Qe6 {[%clk 0:01:02.4]} 36. c4 {[%clk 0:00:44.6]} 36...
Bb7 {[%clk 0:01:02.4]} 37. Qe2 {[%clk 0:00:42.5]} 37... Rcd8 {[%clk 0:01:00.6]}
38. Nh3 {[%clk 0:00:42]} 38... Qc6 {[%clk 0:00:58.6]} 39. Qe4 {[%clk 0:00:35.1]}
39... Qc7 {[%clk 0:00:57.8]} 40. Qe2 {[%clk 0:00:35.1]} 40... Bh6 {[%clk
0:00:56.5]} 41. Bc2 {[%clk 0:00:31.1]} 41... Nd4 {[%clk 0:00:53.8]} 42. Bxd4
{[%clk 0:00:30.3]} 42... Rxd4 {[%clk 0:00:50.1]} 43. Kg2 {[%clk 0:00:23.9]}
43... Bg7 {[%clk 0:00:45.9]} 44. Qf1 {[%clk 0:00:23.6]} 44... Bc6 {[%clk
0:00:44.1]} 45. Re3 {[%clk 0:00:22.8]} 45... b5 {[%clk 0:00:43.8]} 46. axb5
{[%clk 0:00:22.3]} 46... axb5 {[%clk 0:00:44.7]} 47. Ra1 {[%clk 0:00:21.2]}
47... Rdd8 {[%clk 0:00:42.6]} 48. Rae1 {[%clk 0:00:20.9]} 48... Ra8 {[%clk
0:00:41.8]} 49. R3e2 {[%clk 0:00:19.6]} 49... Reb8 {[%clk 0:00:33.9]} 50. Bd1
{[%clk 0:00:19.1]} 50... Rd8 {[%clk 0:00:31.6]} 51. Nf2 {[%clk 0:00:17.8]} 51...
Ra3 {[%clk 0:00:21.8]} 52. Re3 {[%clk 0:00:16.1]} 52... bxc4 {[%clk 0:00:21.3]}
53. bxc4 {[%clk 0:00:15.3]} 53... Rb8 {[%clk 0:00:21.2]} 54. R3e2 {[%clk
0:00:11.3]} 54... Bd7 {[%clk 0:00:17.8]} 55. Rd2 {[%clk 0:00:11.2]} 55... Bf5
{[%clk 0:00:17.7]} 56. Ne4 {[%clk 0:00:11]} 56... Be6 {[%clk 0:00:17.6]} 57. Qe2
{[%clk 0:00:11]} 57... Rd8 {[%clk 0:00:17.5]} 58. Bc2 {[%clk 0:00:10.5]} 58...
Raa8 {[%clk 0:00:17.6]} 59. Rb1 {[%clk 0:00:10.3]} 59... Rd7 {[%clk 0:00:17.9]}
60. Bd1 {[%clk 0:00:10.6]} 60... Rad8 {[%clk 0:00:18.2]} 61. Bc2 {[%clk
0:00:11.2]} 61... Bf5 {[%clk 0:00:18.7]} 62. Rdd1 {[%clk 0:00:11.5]} 62... Qc6
{[%clk 0:00:19.1]} 63. Re1 {[%clk 0:00:11.8]} 63... Bf8 {[%clk 0:00:18.8]} 64.
Rbd1 {[%clk 0:00:11.4]} 64... Kg7 {[%clk 0:00:19.2]} 65. Nf2 {[%clk 0:00:11.3]}
65... f6 {[%clk 0:00:19]} 66. Ne4 {[%clk 0:00:11.6]} 66... Qe6 {[%clk
0:00:18.7]} 67. Rb1 {[%clk 0:00:11]} 67... Bh3+ {[%clk 0:00:18.7]} 68. Kh2
{[%clk 0:00:11]} 68... Bf5 {[%clk 0:00:19.4]} 69. Red1 {[%clk 0:00:11.2]} 69...
Rc7 {[%clk 0:00:18.8]} 70. Nc3 {[%clk 0:00:11.1]} 70... Qd7 {[%clk 0:00:18.2]}
71. Ne4 {[%clk 0:00:10.6]} 71... Ra7 {[%clk 0:00:18.2]} 72. Rb2 {[%clk
0:00:10.1]} 72... Be6 {[%clk 0:00:18.2]} 73. Rdb1 {[%clk 0:00:10.2]} 73... Be7
{[%clk 0:00:18.3]} 74. Rb5 {[%clk 0:00:10.2]} 74... Rc8 {[%clk 0:00:18.1]} 75.
Rb6 {[%clk 0:00:09.5]} 75... Bf7 {[%clk 0:00:17.8]} 76. R6b5 {[%clk 0:00:09.6]}
76... Rcc7 {[%clk 0:00:18.1]} 77. Rb6 {[%clk 0:00:09.9]} 77... Ra2 {[%clk
0:00:18.2]} 78. R6b2 {[%clk 0:00:10.1]} 78... Rxb2 {[%clk 0:00:18.2]} 79. Rxb2
{[%clk 0:00:11]} 79... Ra7 {[%clk 0:00:18.8]} 80. Bb1 {[%clk 0:00:10.6]} 80...
Qd4 {[%clk 0:00:18.3]} 81. Ra2 {[%clk 0:00:11]} 81... Rxa2 {[%clk 0:00:17.2]}
82. Bxa2 {[%clk 0:00:10.6]} 82... f5 {[%clk 0:00:17]} 83. Nf2 {[%clk 0:00:10.2]}
83... f4 {[%clk 0:00:15.1]} 84. Kg2 {[%clk 0:00:09.1]} 84... fxg3 {[%clk
0:00:15.4]} 85. Kxg3 {[%clk 0:00:09.9]} 85... Bxh4+ {[%clk 0:00:14.3]} 86. Kg2
{[%clk 0:00:10.1]} 86... Qxf2+ {[%clk 0:00:13.5]} 87. Qxf2 {[%clk 0:00:09.7]}
87... Bxf2 {[%clk 0:00:14.4]} 88. Kxf2 {[%clk 0:00:10.5]} 88... Kf6 {[%clk
0:00:14.7]} 89. Bb1 {[%clk 0:00:09.6]} 89... Be6 {[%clk 0:00:12.4]} 90. Kg3
{[%clk 0:00:10]} 90... g5 {[%clk 0:00:11.4]} 91. Bc2 {[%clk 0:00:10.3]} 91...
Bd7 {[%clk 0:00:10.7]} 92. Bd1 {[%clk 0:00:10.7]} 92... Ke7 {[%clk 0:00:09.6]}
93. Be2 {[%clk 0:00:10.1]} 93... Kd6 {[%clk 0:00:10.1]} 94. Kf2 {[%clk
0:00:10.5]} 94... Kc7 {[%clk 0:00:10.4]} 95. Bf1 {[%clk 0:00:10.9]} 95... Bf5
{[%clk 0:00:10.6]} 96. Ke3 {[%clk 0:00:11.1]} 96... Kb6 {[%clk 0:00:11]} 97. Kd2
{[%clk 0:00:09.9]} 97... h4 {[%clk 0:00:11.1]} 98. Bg2 {[%clk 0:00:10.2]} 98...
Ka5 {[%clk 0:00:11.4]} 99. Kc3 {[%clk 0:00:09.7]} 99... Kb6 {[%clk 0:00:11.6]}
100. Bh1 {[%clk 0:00:09.9]} 100... Kc7 {[%clk 0:00:11.6]} 101. Kd2 {[%clk
0:00:10.4]} 101... Kd6 {[%clk 0:00:12.1]} 102. Ke3 {[%clk 0:00:11]} 102... Bg6
{[%clk 0:00:11]} 103. Ke2 {[%clk 0:00:10.4]} 103... Bh7 {[%clk 0:00:11.3]} 104.
Ke3 {[%clk 0:00:11]} 104... Bf5 {[%clk 0:00:11.9]} 105. Ke2 {[%clk 0:00:11.4]}
105... h3 {[%clk 0:00:12.6]} 106. Ke3 {[%clk 0:00:11.6]} 106... Ke6 {[%clk
0:00:12.5]} 107. Ke2 {[%clk 0:00:11.9]} 107... Kf6 {[%clk 0:00:12.9]} 108. Kf2
{[%clk 0:00:12.3]} 108... Kg6 {[%clk 0:00:13.1]} 109. Ke3 {[%clk 0:00:12.8]}
109... Kh5 {[%clk 0:00:13.3]} 0-1

[Event "Early-Titled-Tuesday-Blitz-May-28-2024"]
[Site "Chess.com"]
[Date "2024.05.28"]
[Round "3"]
[White "Galileo22"]
[Black "AsselLesbekova"]
[Result "1-0"]
[WhiteElo "2621"]
[BlackElo "2445"]
[TimeControl "180+1"]
[EndTime "8:23:36 PDT"]
[Termination "Galileo22 won by resignation"]

1. e4 {[%clk 0:03:00.9]} 1... e5 {[%clk 0:02:59.5]} 2. Nc3 {[%clk 0:02:59.5]}
2... Nc6 {[%clk 0:02:58.9]} 3. Bc4 {[%clk 0:03:00]} 3... Nf6 {[%clk 0:02:56.3]}
4. d3 {[%clk 0:02:59.1]} 4... d6 {[%clk 0:02:54.8]} 5. f4 {[%clk 0:02:58]} 5...
Be6 {[%clk 0:02:54.5]} 6. Bb3 {[%clk 0:02:55.3]} 6... Be7 {[%clk 0:02:50.9]} 7.
Nf3 {[%clk 0:02:54.7]} 7... d5 {[%clk 0:02:40.7]} 8. fxe5 {[%clk 0:02:53.3]}
8... Ng4 {[%clk 0:02:40.4]} 9. exd5 {[%clk 0:02:53.1]} 9... Ncxe5 {[%clk
0:02:33.4]} 10. dxe6 {[%clk 0:02:52.3]} 10... fxe6 {[%clk 0:02:31.3]} 11. Nxe5
{[%clk 0:02:51.6]} 11... Nxe5 {[%clk 0:02:30.6]} 12. Qh5+ {[%clk 0:02:50.8]}
12... Ng6 {[%clk 0:02:30.3]} 13. O-O {[%clk 0:02:46.6]} 13... Qd4+ {[%clk
0:02:29.9]} 14. Kh1 {[%clk 0:02:46.3]} 14... O-O-O {[%clk 0:02:27.5]} 15. Bxe6+
{[%clk 0:02:45.1]} 15... Kb8 {[%clk 0:02:27.8]} 16. Bd2 {[%clk 0:02:37.5]} 16...
Bc5 {[%clk 0:02:23.9]} 17. Rae1 {[%clk 0:02:29.3]} 17... a6 {[%clk 0:02:22.1]}
18. Be3 {[%clk 0:02:25]} 1-0

[Event "Early-Titled-Tuesday-Blitz-May-28-2024"]
[Site "Chess.com"]
[Date "2024.05.28"]
[Round "3"]
[White "frankshar"]
[Black "Adar_07"]
[Result "0-1"]
[WhiteElo "2508"]
[BlackElo "2765"]
[TimeControl "180+1"]
[EndTime "8:24:12 PDT"]
[Termination "Adar_07 won by resignation"]

1. e4 {[%clk 0:03:00.9]} 1... c6 {[%clk 0:02:59.4]} 2. d4 {[%clk 0:02:59.5]}
2... d5 {[%clk 0:03:00.3]} 3. f3 {[%clk 0:02:59.3]} 3... dxe4 {[%clk 0:02:56.4]}
4. fxe4 {[%clk 0:03:00.1]} 4... e5 {[%clk 0:02:57.3]} 5. Nf3 {[%clk 0:02:59.6]}
5... Bg4 {[%clk 0:02:57.1]} 6. Bc4 {[%clk 0:02:58.4]} 6... Nd7 {[%clk
0:02:54.7]} 7. c3 {[%clk 0:02:56.5]} 7... Ngf6 {[%clk 0:02:52.2]} 8. h3 {[%clk
0:02:39.6]} 8... Bxf3 {[%clk 0:02:41.2]} 9. Qxf3 {[%clk 0:02:38.8]} 9... exd4
{[%clk 0:02:42.1]} 10. cxd4 {[%clk 0:02:38.4]} 10... Nb6 {[%clk 0:02:42.5]} 11.
Bb3 {[%clk 0:02:32.2]} 11... Qxd4 {[%clk 0:02:42.1]} 12. Nc3 {[%clk 0:02:32.3]}
12... Bb4 {[%clk 0:02:41.8]} 13. Bd2 {[%clk 0:02:27.7]} 13... Bxc3 {[%clk
0:02:37.9]} 14. Bxc3 {[%clk 0:02:28.6]} 14... Qxe4+ {[%clk 0:02:37.8]} 15. Qxe4+
{[%clk 0:02:27.6]} 15... Nxe4 {[%clk 0:02:38.7]} 16. Bxg7 {[%clk 0:02:27.4]}
16... Rg8 {[%clk 0:02:39.1]} 17. Bd4 {[%clk 0:02:27.3]} 17... Rxg2 {[%clk
0:02:36.4]} 18. O-O-O {[%clk 0:02:26.5]} 18... O-O-O {[%clk 0:02:31]} 19. Bxf7
{[%clk 0:02:23]} 19... Rd6 {[%clk 0:02:19.8]} 20. Be5 {[%clk 0:02:17.8]} 20...
Rxd1+ {[%clk 0:02:15.5]} 21. Rxd1 {[%clk 0:02:16.2]} 21... Nd7 {[%clk
0:02:15.5]} 22. Be6 {[%clk 0:02:13.3]} 22... Nc5 {[%clk 0:02:15.8]} 23. Bd6
{[%clk 0:02:11.4]} 23... Nxe6 {[%clk 0:02:15.7]} 0-1

[Event "Early-Titled-Tuesday-Blitz-May-28-2024"]
[Site "Chess.com"]
[Date "2024.05.28"]
[Round "3"]
[White "SaraBlackPanther"]
[Black "dropstoneDP"]
[Result "1/2-1/2"]
[WhiteElo "2752"]
[BlackElo "2976"]
[TimeControl "180+1"]
[EndTime "8:24:28 PDT"]
[Termination "Game drawn by repetition"]

1. d4 {[%clk 0:03:00.9]} 1... d5 {[%clk 0:02:58.7]} 2. c4 {[%clk 0:03:00.6]}
2... dxc4 {[%clk 0:02:59.6]} 3. Nf3 {[%clk 0:02:59.8]} 3... Nf6 {[%clk
0:02:59.9]} 4. e3 {[%clk 0:03:00.5]} 4... e6 {[%clk 0:03:00.6]} 5. Bxc4 {[%clk
0:03:01.1]} 5... c5 {[%clk 0:03:01.3]} 6. O-O {[%clk 0:03:01.5]} 6... a6 {[%clk
0:03:01.8]} 7. b3 {[%clk 0:03:01.9]} 7... cxd4 {[%clk 0:03:00.1]} 8. Nxd4 {[%clk
0:03:01.1]} 8... Bc5 {[%clk 0:03:00.7]} 9. Bb2 {[%clk 0:03:00.5]} 9... b5 {[%clk
0:02:59.5]} 10. Be2 {[%clk 0:03:00.3]} 10... O-O {[%clk 0:02:59.3]} 11. a4
{[%clk 0:02:58.9]} 11... bxa4 {[%clk 0:02:58.8]} 12. Rxa4 {[%clk 0:02:55.8]}
12... Bb7 {[%clk 0:02:59.2]} 13. Bf3 {[%clk 0:02:50]} 13... Bxf3 {[%clk
0:02:57.5]} 14. Qxf3 {[%clk 0:02:49.8]} 14... Qd5 {[%clk 0:02:58.1]} 15. Nd2
{[%clk 0:02:43.9]} 15... Bxd4 {[%clk 0:02:53.7]} 16. Bxd4 {[%clk 0:02:40.8]}
16... Nc6 {[%clk 0:02:52.3]} 17. Bxf6 {[%clk 0:02:09.3]} 17... Qxf3 {[%clk
0:02:51.4]} 18. gxf3 {[%clk 0:02:10.2]} 18... gxf6 {[%clk 0:02:51]} 19. Rfa1
{[%clk 0:02:11.1]} 19... a5 {[%clk 0:02:37.9]} 20. Nc4 {[%clk 0:02:06.4]} 20...
Rfb8 {[%clk 0:02:37.8]} 21. Nxa5 {[%clk 0:02:00.6]} 21... Rxa5 {[%clk
0:02:37.9]} 22. Rxa5 {[%clk 0:02:01.1]} 22... Nxa5 {[%clk 0:02:38.8]} 23. Rxa5
{[%clk 0:02:01.7]} 23... Rxb3 {[%clk 0:02:39.4]} 24. Kg2 {[%clk 0:02:01.2]}
24... Kg7 {[%clk 0:02:39.8]} 25. Ra4 {[%clk 0:01:59.8]} 25... f5 {[%clk
0:02:39.8]} 26. f4 {[%clk 0:01:59]} 26... Rb8 {[%clk 0:02:39.3]} 27. Ra2 {[%clk
0:01:54.8]} 27... Kg6 {[%clk 0:02:39.5]} 28. Ra3 {[%clk 0:01:54.6]} 28... Kg7
{[%clk 0:02:39.2]} 29. Ra2 {[%clk 0:01:54.7]} 29... Kg6 {[%clk 0:02:39.8]} 30.
Ra3 {[%clk 0:01:55.3]} 30... Kg7 {[%clk 0:02:40.4]} 31. Ra2 {[%clk 0:01:55.2]}
1/2-1/2

[Event "Early-Titled-Tuesday-Blitz-May-28-2024"]
[Site "Chess.com"]
[Date "2024.05.28"]
[Round "3"]
[White "Keithonsky"]
[Black "Jospem"]
[Result "0-1"]
[WhiteElo "2633"]
[BlackElo "3027"]
[TimeControl "180+1"]
[EndTime "8:24:46 PDT"]
[Termination "Jospem won by resignation"]

1. d4 {[%clk 0:03:00.9]} 1... Nf6 {[%clk 0:03:00.2]} 2. c4 {[%clk 0:03:00.8]}
2... e6 {[%clk 0:03:00.8]} 3. Nf3 {[%clk 0:03:00.3]} 3... Bb4+ {[%clk
0:03:01.3]} 4. Bd2 {[%clk 0:02:59.8]} 4... c5 {[%clk 0:03:01.7]} 5. Bxb4 {[%clk
0:02:59.3]} 5... cxb4 {[%clk 0:03:02.6]} 6. a3 {[%clk 0:03:00.2]} 6... bxa3
{[%clk 0:03:02.7]} 7. Nxa3 {[%clk 0:03:01.1]} 7... O-O {[%clk 0:03:02.5]} 8. g3
{[%clk 0:03:01.5]} 8... b6 {[%clk 0:03:02.6]} 9. Bg2 {[%clk 0:03:01.8]} 9... Bb7
{[%clk 0:03:03.3]} 10. O-O {[%clk 0:03:02.3]} 10... a5 {[%clk 0:03:03.8]} 11.
Nb5 {[%clk 0:02:59.3]} 11... d6 {[%clk 0:03:04.2]} 12. Qb3 {[%clk 0:02:56.5]}
12... Na6 {[%clk 0:03:03.1]} 13. Qa3 {[%clk 0:02:56.5]} 13... Nb4 {[%clk
0:03:03]} 14. Rac1 {[%clk 0:02:57.1]} 14... Rc8 {[%clk 0:03:02.9]} 15. Rfd1
{[%clk 0:02:56.4]} 15... Ba6 {[%clk 0:03:01.7]} 16. Nd2 {[%clk 0:02:47.2]} 16...
Qd7 {[%clk 0:02:57.8]} 17. Qa4 {[%clk 0:02:40.1]} 17... d5 {[%clk 0:02:52]} 18.
b3 {[%clk 0:02:30.6]} 18... Bxb5 {[%clk 0:02:51.8]} 19. Qxb5 {[%clk 0:02:20.9]}
19... Qxb5 {[%clk 0:02:51.8]} 20. cxb5 {[%clk 0:02:21.5]} 20... Na2 {[%clk
0:02:52.7]} 21. Rxc8 {[%clk 0:02:20.4]} 21... Rxc8 {[%clk 0:02:53.6]} 22. Kf1
{[%clk 0:02:08]} 22... Rc2 {[%clk 0:02:53.2]} 23. Nb1 {[%clk 0:02:00.4]} 23...
Rb2 {[%clk 0:02:45.1]} 24. Bf3 {[%clk 0:01:58.2]} 24... Rxb3 {[%clk 0:02:44]}
25. Nd2 {[%clk 0:01:52.3]} 25... Rxb5 {[%clk 0:02:37.6]} 26. Ra1 {[%clk
0:01:53]} 26... Rb2 {[%clk 0:02:37.3]} 27. Ke1 {[%clk 0:01:50]} 27... Nb4 {[%clk
0:02:37.6]} 28. Kd1 {[%clk 0:01:49.2]} 28... g5 {[%clk 0:02:32.5]} 29. Rc1
{[%clk 0:01:48.6]} 29... Kg7 {[%clk 0:02:32.2]} 30. h3 {[%clk 0:01:48.3]} 30...
h5 {[%clk 0:02:32.2]} 31. e3 {[%clk 0:01:46.7]} 31... Nd3 {[%clk 0:02:31.7]} 32.
Rc7 {[%clk 0:01:45.3]} 32... Nxf2+ {[%clk 0:02:30.3]} 33. Ke2 {[%clk 0:01:44.9]}
33... N2e4 {[%clk 0:02:30.5]} 0-1

[Event "Early-Titled-Tuesday-Blitz-May-28-2024"]
[Site "Chess.com"]
[Date "2024.05.28"]
[Round "3"]
[White "HouseOfDurin"]
[Black "Nekoo04"]
[Result "0-1"]
[WhiteElo "2227"]
[BlackElo "2423"]
[TimeControl "180+1"]
[EndTime "8:25:15 PDT"]
[Termination "Nekoo04 won by resignation"]

1. d4 {[%clk 0:03:00.9]} 1... Nf6 {[%clk 0:02:59]} 2. Bg5 {[%clk 0:03:01.2]}
2... Ne4 {[%clk 0:02:57.7]} 3. h4 {[%clk 0:03:00.8]} 3... d5 {[%clk 0:02:57.1]}
4. Nd2 {[%clk 0:02:59.8]} 4... c5 {[%clk 0:02:38.7]} 5. Nxe4 {[%clk 0:02:55.8]}
5... dxe4 {[%clk 0:02:29.9]} 6. dxc5 {[%clk 0:02:55.6]} 6... Qa5+ {[%clk
0:02:29.4]} 7. c3 {[%clk 0:02:54.2]} 7... Qxc5 {[%clk 0:02:29.7]} 8. Qa4+ {[%clk
0:02:49.7]} 8... Qc6 {[%clk 0:02:22.6]} 9. Qb3 {[%clk 0:02:32.5]} 9... Be6
{[%clk 0:02:19.1]} 10. Qc2 {[%clk 0:02:32.3]} 10... h6 {[%clk 0:02:12.5]} 11.
Bd2 {[%clk 0:02:30.3]} 11... Bf5 {[%clk 0:02:07.6]} 12. e3 {[%clk 0:02:29.7]}
12... Nd7 {[%clk 0:02:08.2]} 13. O-O-O {[%clk 0:02:28.8]} 13... e5 {[%clk
0:01:58.8]} 14. Qb3 {[%clk 0:02:22.1]} 14... a6 {[%clk 0:01:55.6]} 15. Bc4
{[%clk 0:02:15.8]} 15... Nc5 {[%clk 0:01:32]} 16. Bxf7+ {[%clk 0:02:15.1]} 16...
Ke7 {[%clk 0:01:31.7]} 17. Qd5 {[%clk 0:02:14.9]} 17... Nd3+ {[%clk 0:01:08.1]}
18. Kc2 {[%clk 0:02:13.2]} 18... Nb4+ {[%clk 0:01:06.7]} 19. Kb1 {[%clk
0:02:09.5]} 19... Nxd5 {[%clk 0:01:07.6]} 20. Bxd5 {[%clk 0:02:08]} 20... Qxd5
{[%clk 0:01:08.5]} 21. Ne2 {[%clk 0:02:08.4]} 21... Qd3+ {[%clk 0:01:08.5]} 0-1

[Event "Early-Titled-Tuesday-Blitz-May-28-2024"]
[Site "Chess.com"]
[Date "2024.05.28"]
[Round "3"]
[White "jens1102"]
[Black "jlf287"]
[Result "1-0"]
[WhiteElo "2707"]
[BlackElo "2492"]
[TimeControl "180+1"]
[EndTime "8:25:27 PDT"]
[Termination "jens1102 won by resignation"]

1. c4 {[%clk 0:02:54.3]} 1... c6 {[%clk 0:02:50.2]} 2. e4 {[%clk 0:02:54]} 2...
d5 {[%clk 0:02:49.1]} 3. exd5 {[%clk 0:02:54.9]} 3... cxd5 {[%clk 0:02:47.9]} 4.
d4 {[%clk 0:02:52.3]} 4... Nf6 {[%clk 0:02:47.1]} 5. Nc3 {[%clk 0:02:52.1]} 5...
g6 {[%clk 0:02:46.2]} 6. Bg5 {[%clk 0:02:51.3]} 6... Ne4 {[%clk 0:02:40.4]} 7.
Nxe4 {[%clk 0:02:48.2]} 7... dxe4 {[%clk 0:02:40.4]} 8. Be2 {[%clk 0:02:42.1]}
8... Bg7 {[%clk 0:02:36.4]} 9. Be3 {[%clk 0:02:42]} 9... O-O {[%clk 0:02:32.8]}
10. Nh3 {[%clk 0:02:40.4]} 10... Nc6 {[%clk 0:02:27.8]} 11. d5 {[%clk
0:02:39.4]} 11... Bxh3 {[%clk 0:02:24.8]} 12. gxh3 {[%clk 0:02:37.7]} 12... Ne5
{[%clk 0:02:25.4]} 13. O-O {[%clk 0:02:36.9]} 13... Qd7 {[%clk 0:02:07.8]} 14.
Kg2 {[%clk 0:02:33.6]} 14... Nf3 {[%clk 0:02:08]} 15. Bxf3 {[%clk 0:02:31.1]}
15... exf3+ {[%clk 0:02:08.9]} 16. Qxf3 {[%clk 0:02:31]} 16... Bxb2 {[%clk
0:02:08.3]} 17. Rab1 {[%clk 0:02:31.9]} 17... Bf6 {[%clk 0:02:06.3]} 18. c5
{[%clk 0:02:24.5]} 18... Rfd8 {[%clk 0:01:45]} 19. Rfd1 {[%clk 0:02:23.9]} 19...
Rac8 {[%clk 0:01:42.7]} 20. d6 {[%clk 0:02:20.2]} 20... Rc6 {[%clk 0:01:42.3]}
21. dxe7 {[%clk 0:02:15.2]} 21... Qxe7 {[%clk 0:01:41.7]} 22. Rxd8+ {[%clk
0:02:13.5]} 22... Qxd8 {[%clk 0:01:42]} 23. Rxb7 {[%clk 0:02:14]} 23... Ra6
{[%clk 0:01:10.9]} 24. c6 {[%clk 0:02:07.7]} 24... Be5 {[%clk 0:01:09.5]} 25.
Qxf7+ {[%clk 0:02:06.5]} 1-0

[Event "Early-Titled-Tuesday-Blitz-May-28-2024"]
[Site "Chess.com"]
[Date "2024.05.28"]
[Round "3"]
[White "rhwr"]
[Black "ChelsieMonica"]
[Result "1-0"]
[WhiteElo "2309"]
[BlackElo "2484"]
[TimeControl "180+1"]
[EndTime "8:25:30 PDT"]
[Termination "rhwr won by resignation"]

1. e4 {[%clk 0:03:00.9]} 1... c5 {[%clk 0:02:59]} 2. Nf3 {[%clk 0:02:59.5]} 2...
e6 {[%clk 0:02:59.1]} 3. d4 {[%clk 0:02:57.3]} 3... cxd4 {[%clk 0:02:59.4]} 4.
Nxd4 {[%clk 0:02:57.2]} 4... Nc6 {[%clk 0:03:00.2]} 5. Nc3 {[%clk 0:02:55.6]}
5... Nf6 {[%clk 0:03:00]} 6. Nxc6 {[%clk 0:02:54.1]} 6... bxc6 {[%clk
0:02:58.7]} 7. e5 {[%clk 0:02:54.4]} 7... Nd5 {[%clk 0:02:59]} 8. Nxd5 {[%clk
0:02:54.3]} 8... cxd5 {[%clk 0:02:59.5]} 9. Bd3 {[%clk 0:02:54.3]} 9... g6
{[%clk 0:02:57.7]} 10. O-O {[%clk 0:02:54]} 10... Bg7 {[%clk 0:02:57.8]} 11. Re1
{[%clk 0:02:53]} 11... O-O {[%clk 0:02:58.1]} 12. Qg4 {[%clk 0:02:49.5]} 12...
d6 {[%clk 0:02:57.6]} 13. Bg5 {[%clk 0:02:46.4]} 13... Qc7 {[%clk 0:02:51.3]}
14. exd6 {[%clk 0:02:38.2]} 14... Qxd6 {[%clk 0:02:52.2]} 15. c3 {[%clk
0:02:37.6]} 15... e5 {[%clk 0:02:51.9]} 16. Qh4 {[%clk 0:02:36.3]} 16... e4
{[%clk 0:02:50.6]} 17. Bc2 {[%clk 0:02:30.5]} 17... Be6 {[%clk 0:02:47.5]} 18.
Be7 {[%clk 0:02:29]} 18... Qb6 {[%clk 0:02:47.7]} 19. Bxf8 {[%clk 0:02:28.1]}
19... Rxf8 {[%clk 0:02:48.3]} 20. Bb3 {[%clk 0:02:27.3]} 20... h6 {[%clk
0:02:43.6]} 21. Rad1 {[%clk 0:02:17]} 21... Qc5 {[%clk 0:02:43.3]} 22. Qf4
{[%clk 0:02:11.5]} 22... f5 {[%clk 0:02:36.1]} 23. Qe3 {[%clk 0:02:09.5]} 23...
Qa5 {[%clk 0:02:31.4]} 24. Qd2 {[%clk 0:02:05.6]} 24... Rd8 {[%clk 0:02:30.8]}
25. f3 {[%clk 0:01:57.4]} 25... Kh7 {[%clk 0:02:26.1]} 26. fxe4 {[%clk
0:01:56.9]} 26... fxe4 {[%clk 0:02:22.8]} 27. Rxe4 {[%clk 0:01:53.7]} 27... dxe4
{[%clk 0:02:22.6]} 28. Qxd8 {[%clk 0:01:52.8]} 28... Qc5+ {[%clk 0:02:16.7]} 29.
Kh1 {[%clk 0:01:50.9]} 29... Bxb3 {[%clk 0:02:16.6]} 30. axb3 {[%clk 0:01:50.3]}
30... e3 {[%clk 0:02:16.3]} 31. Qe8 {[%clk 0:01:46]} 31... Qg5 {[%clk
0:02:04.8]} 32. Re1 {[%clk 0:01:41.3]} 32... h5 {[%clk 0:02:03.6]} 33. Qxe3
{[%clk 0:01:39.7]} 33... Qa5 {[%clk 0:02:03.6]} 34. b4 {[%clk 0:01:37.3]} 34...
Qb5 {[%clk 0:02:03.3]} 35. Qxa7 {[%clk 0:01:33.9]} 1-0